lending/lending_fUSD_20240207
["ID","MTS","AMOUNT","RATE_DAILY","PERIOD"]
[313422022,1707330538822,-500.0,0.00047397,31]
[313422023,1707330538847,-500.0,0.00047397,31]
[313422024,1707330538872,-500.0,0.00047397,31]
[313422025,1707330538897,-500.0,0.00047397,31]
[313422026,1707330538923,-500.0,0.00047397,31]
[313422027,1707330538948,-500.0,0.00047397,31]
[313422028,1707330538973,-500.0,0.00047397,31]
[313422029,1707330538997,-347.08652614,0.00047397,31]
[313422030,1707330539022,-576.98,0.00047397,31]
[313422031,1707330539047,-500.0,0.00047397,31]
[313422032,1707330539071,-500.0,0.00047397,31]
[313422033,1707330539095,-508.97,0.00047397,31]
[313422034,1707330539121,-500.0,0.00047397,31]
[313422035,1707330539147,-500.0,0.00047397,31]
[313422036,1707330539173,-500.0,0.00047397,31]
[313422037,1707330539199,-500.0,0.00047397,31]
[313422038,1707330539226,-500.0,0.00047397,31]
[313422039,1707330539252,-631.63,0.00047397,31]
[313422040,1707330539279,-500.0,0.00047397,31]
[313422041,1707330539307,-500.0,0.00047397,31]
[313422042,1707330539333,-500.0,0.00047397,31]
[313422043,1707330539358,-500.0,0.00047397,31]
[313422044,1707330539385,-500.0,0.00047397,31]
[313422045,1707330539410,-563.28,0.00047397,31]
[313422046,1707330539435,-500.0,0.00047397,31]
[313422047,1707330539460,-500.0,0.00047397,31]
[313422048,1707330539488,-577.25,0.00047397,31]
[313422049,1707330539513,-500.0,0.00047397,31]
[313422050,1707330539538,-500.0,0.00047397,31]
[313422051,1707330539563,-500.0,0.00047397,31]
[313422052,1707330539589,-500.0,0.00047397,31]
[313422053,1707330539614,-579.17825474,0.00047397,31]
[313422054,1707330539640,-534.52,0.00047397,31]
[313422055,1707330539666,-500.0,0.00047397,31]
[313422056,1707330539691,-576.93891392,0.00047397,31]
[313422057,1707330539717,-500.0,0.00047397,31]
[313422058,1707330539743,-500.0,0.00047397,30]
[313422059,1707330539769,-500.0,0.00047397,31]
[313422060,1707330539795,-500.0,0.00047397,31]
[313422061,1707330539821,-500.0,0.00047397,31]
[313422062,1707330539847,-618.94604101,0.00047397,31]
[313422063,1707330539874,-500.0,0.00047397,31]
[313422064,1707330539901,-500.0,0.00047397,31]
[313422065,1707330539929,-500.0,0.00047397,31]
[313422066,1707330539955,-500.0,0.00047397,31]
[313422067,1707330539981,-500.0,0.00047397,120]
[313422068,1707330540006,-500.0,0.00047397,31]
[313422069,1707330540033,-500.0,0.00047397,31]
[313422070,1707330540059,-605.54,0.00047397,31]
[313422071,1707330540085,-500.0,0.00047397,31]
[313422072,1707330540109,-234.55425472,0.00047397,31]
[313422073,1707330540134,-244.3041266,0.00047397,31]
[313422074,1707330540158,-500.0,0.00047397,31]
[313422075,1707330540184,-500.0,0.00047397,31]
[313422076,1707330540209,-500.0,0.00047397,31]
[313422077,1707330540235,-500.0,0.00047397,31]
[313422078,1707330540262,-500.0,0.00047397,31]
[313422079,1707330540290,-507.73615798,0.00047397,31]
[313422080,1707330540318,-500.0,0.00047397,31]
[313422081,1707330540344,-500.0,0.00047397,31]
[313422082,1707330540370,-194.11103892,0.00047397,31]
[313422083,1707330540399,-500.0,0.00047397,31]
[313422084,1707330540424,-500.0,0.00047397,31]
[313422085,1707330540450,-500.0,0.00047397,31]
[313422086,1707330540476,-550.56,0.00047397,31]
[313422087,1707330540667,-500.0,0.00047397,31]
[313422088,1707330540696,-500.0,0.00047397,31]
[313422089,1707330540722,-500.0,0.00047397,31]
[313422090,1707330540748,-2489.89,0.00047397,31]
[313422091,1707330540774,-500.0,0.00047397,31]
[313422092,1707330540801,-500.0,0.00047397,31]
[313422093,1707330540827,-592.64,0.00047397,31]
[313422094,1707330540854,-500.0,0.00047397,31]
[313422095,1707330540881,-500.0,0.00047397,31]
[313422096,1707330540907,-500.0,0.00047397,31]
[313422097,1707330540932,-503.61,0.00047397,31]
[313422098,1707330540959,-500.0,0.00047397,31]
[313422099,1707330540984,-500.0,0.00047397,31]
[313422100,1707330541009,-500.0,0.00047397,31]
[313422101,1707330541036,-683.5,0.00047397,31]
[313422102,1707330541062,-1386.26,0.00047397,31]
[313422103,1707330541087,-500.0,0.00047397,31]
[313422104,1707330541114,-500.0,0.00047397,31]
[313422105,1707330541141,-500.0,0.00047397,31]
[313422106,1707330541169,-500.0,0.00047397,31]
[313422107,1707330541196,-500.0,0.00047397,31]
[313422108,1707330541224,-500.0,0.00047397,31]
[313422109,1707330541252,-1030.99,0.00047397,31]
[313422110,1707330541279,-500.0,0.00047397,31]
[313422111,1707330541309,-521.39,0.00047397,31]
[313422112,1707330541337,-301.1701831,0.00047397,31]
[313422113,1707330541365,-500.0,0.00047397,31]
[313422114,1707330541393,-500.0,0.00047397,31]
[313422115,1707330541420,-1196.13,0.00047397,31]
[313422116,1707330541447,-500.0,0.00047397,31]
[313422117,1707330541472,-516.95309237,0.00047397,31]
[313422118,1707330541500,-500.0,0.00047397,31]
[313422119,1707330541530,-500.0,0.00047397,31]
[313422120,1707330541556,-226.16858678,0.00047397,31]
[313422121,1707330541582,-500.0,0.00047397,31]
[313422122,1707330541607,-500.0,0.00047397,31]
[313422123,1707330541633,-522.94502339,0.00047397,31]
[313422124,1707330541658,-500.0,0.00047397,31]
[313422125,1707330541683,-748.87,0.00047397,31]
[313422126,1707330541709,-985.77,0.00047397,31]
[313422127,1707330541733,-500.0,0.00047397,31]
[313422128,1707330541762,-1213.03,0.00047397,31]
[313422129,1707330541788,-500.0,0.00047397,31]
[313422130,1707330541813,-500.0,0.00047397,31]
[313422131,1707330541839,-617.1,0.00047397,31]
[313422132,1707330541864,-500.0,0.00047397,31]
[313422133,1707330541891,-500.0,0.00047397,31]
[313422134,1707330541916,-500.0,0.00047397,31]
[313422135,1707330541941,-500.0,0.00047397,31]
[313422136,1707330541967,-500.0,0.00047397,31]
[313422137,1707330541992,-500.0,0.00047397,31]
[313422138,1707330542020,-866.37,0.00047397,31]
[313422139,1707330542045,-500.0,0.00047397,31]
[313422140,1707330542072,-500.0,0.00047397,31]
[313422141,1707330542099,-1970.33,0.00047397,31]
[313422142,1707330542126,-500.0,0.00047397,31]
[313422143,1707330542153,-500.0,0.00047397,31]
[313422144,1707330542179,-500.0,0.00047397,31]
[313422145,1707330542205,-500.0,0.00047397,31]
[313422146,1707330542231,-500.0,0.00047397,31]
[313422147,1707330542259,-500.0,0.00047397,31]
[313422148,1707330542288,-500.0,0.00047397,31]
[313422149,1707330542315,-501.79,0.00047397,31]
[313422150,1707330542342,-500.0,0.00047397,31]
[313422151,1707330542371,-500.0,0.00047397,31]
[313422152,1707330542399,-500.0,0.00047397,31]
[313422153,1707330542427,-1142.43,0.00047397,31]
[313422154,1707330542454,-500.0,0.00047397,31]
[313422155,1707330542481,-500.0,0.00047397,31]
[313422156,1707330542507,-738.34,0.00047397,31]
[313422157,1707330542533,-500.0,0.00047397,31]
[313422158,1707330542559,-1000.0,0.00047397,30]
[313422159,1707330542585,-500.0,0.00047397,31]
[313422160,1707330542611,-695.18,0.00047397,31]
[313422161,1707330542638,-500.0,0.00047397,31]
[313422162,1707330542663,-500.0,0.00047397,31]
[313422163,1707330542689,-500.0,0.00047397,31]
[313422164,1707330542715,-500.0,0.00047397,31]
[313422165,1707330542742,-546.06,0.00047397,31]
[313422166,1707330542769,-797.57,0.00047397,31]
[313422167,1707330542796,-500.0,0.00047397,31]
[313422168,1707330542823,-500.0,0.00047397,31]
[313422169,1707330542853,-1903.37,0.00047397,31]
[313422170,1707330542882,-1061.97,0.00047397,31]
[313422171,1707330542910,-500.0,0.00047397,31]
[313422172,1707330542937,-500.0,0.00047397,31]
[313422173,1707330542963,-500.0,0.00047397,31]
[313422174,1707330542989,-522.10829864,0.00047397,31]
[313422175,1707330543015,-500.0,0.00047397,31]
[313422176,1707330543044,-1000.0,0.00047397,31]
[313422177,1707330543070,-500.0,0.00047397,31]
[313422178,1707330543096,-2276.5,0.00047397,31]
[313422179,1707330543123,-500.0,0.00047397,31]
[313422180,1707330543151,-500.0,0.00047397,31]
[313422181,1707330543178,-500.0,0.00047397,31]
[313422182,1707330543206,-500.0,0.00047397,31]
[313422183,1707330543234,-500.0,0.00047397,31]
[313422184,1707330543263,-859.74,0.00047397,31]
[313422185,1707330543291,-541.72103685,0.00047397,31]
[313422186,1707330543318,-500.0,0.00047397,31]
[313422187,1707330543346,-623.18,0.00047397,31]
[313422188,1707330543372,-500.0,0.00047397,31]
[313422189,1707330543400,-500.0,0.00047397,31]
[313422190,1707330543429,-500.0,0.00047397,31]
[313422191,1707330543456,-500.0,0.00047397,31]
[313422192,1707330543656,-500.0,0.00047397,31]
[313422193,1707330543684,-500.0,0.00047397,31]
[313422194,1707330543711,-586.07,0.00047397,31]
[313422195,1707330543741,-500.0,0.00047397,31]
[313422196,1707330543768,-500.0,0.00047397,31]
[313422197,1707330543798,-531.53,0.00047397,31]
[313422198,1707330543824,-500.0,0.00047397,31]
[313422199,1707330543850,-500.0,0.00047397,31]
[313422200,1707330543879,-540.75,0.00047397,31]
[313422201,1707330543905,-500.0,0.00047397,31]
[313422202,1707330543932,-1140.73,0.00047397,31]
[313422203,1707330543960,-500.0,0.00047397,31]
[313422204,1707330543988,-500.0,0.00047397,31]
[313422205,1707330544014,-500.0,0.00047397,31]
[313422206,1707330544042,-2110.96,0.00047397,31]
[313422207,1707330544070,-5100.19,0.00047397,31]
[313422208,1707330544097,-500.0,0.00047397,31]
[313422209,1707330544124,-500.0,0.00047397,31]
[313422210,1707330544151,-500.0,0.00047397,31]
[313422211,1707330544179,-500.0,0.00047397,31]
[313422212,1707330544206,-826.78,0.00047397,31]
[313422213,1707330544233,-604.8,0.00047397,31]
[313422214,1707330544261,-500.0,0.00047397,31]
[313422215,1707330544289,-450.19906603,0.00047397,31]
[313422216,1707330544318,-690.26,0.00047397,31]
[313422217,1707330544346,-590.4,0.00047397,31]
[313422218,1707330544375,-500.0,0.00047397,31]
[313422219,1707330544403,-500.0,0.00047397,31]
[313422220,1707330544430,-500.0,0.00047397,31]
[313422221,1707330544457,-500.0,0.00047397,31]
[313422222,1707330544483,-500.0,0.00047397,31]
[313422223,1707330544509,-500.0,0.00047397,31]
[313422224,1707330544536,-1013.12,0.00047397,31]
[313422225,1707330544564,-3110.14,0.00047397,31]
[313422226,1707330544593,-500.0,0.00047397,31]
[313422227,1707330544619,-762.97,0.00047397,31]
[313422228,1707330544646,-1253.08,0.00047397,31]
[313422229,1707330544671,-500.0,0.00047397,31]
[313422230,1707330544698,-590.1,0.00047397,31]
[313422231,1707330544725,-500.0,0.00047397,31]
[313422232,1707330544753,-500.0,0.00047397,31]
[313422233,1707330544780,-500.0,0.00047397,31]
[313422234,1707330544806,-500.0,0.00047397,31]
[313422235,1707330544833,-500.0,0.00047397,31]
[313422236,1707330544861,-500.0,0.00047397,31]
[313422237,1707330544888,-1334.35,0.00047397,31]
[313422238,1707330544915,-500.0,0.00047397,31]
[313422239,1707330544941,-1234.51,0.00047397,31]
[313422240,1707330544969,-1126.78,0.00047397,31]
[313422241,1707330544996,-500.0,0.00047397,31]
[313422242,1707330545024,-500.0,0.00047397,31]
[313422243,1707330545052,-910.87,0.00047397,31]
[313422244,1707330545079,-500.0,0.00047397,31]
[313422245,1707330545106,-638.99,0.00047397,31]
[313422246,1707330545133,-500.0,0.00047397,31]
[313422247,1707330545161,-5470.6,0.00047397,31]
[313422248,1707330545187,-500.0,0.00047397,31]
[313422249,1707330545214,-500.0,0.00047397,31]
[313422250,1707330545241,-1317.55,0.00047397,31]
[313422251,1707330545267,-673.32,0.00047397,31]
[313422252,1707330545295,-500.0,0.00047397,31]
[313422253,1707330545324,-565.7,0.00047397,31]
[313422254,1707330545353,-500.0,0.00047397,31]
[313422255,1707330545404,-500.0,0.00047397,31]
[313422256,1707330545451,-1027.86,0.00047397,31]
[313422257,1707330545496,-543.86,0.00047397,31]
[313422258,1707330545541,-863.51,0.00047397,31]
[313422259,1707330545587,-500.0,0.00047397,31]
[313422260,1707330545636,-681.27,0.00047397,31]
[313422261,1707330545677,-500.0,0.00047397,31]
[313422262,1707330545721,-520.56785375,0.00047397,31]
[313422263,1707330545759,-580.46,0.00047397,31]
[313422264,1707330545802,-872.39,0.00047397,31]
[313422265,1707330545843,-628.04,0.00047397,31]
[313422266,1707330545883,-500.0,0.00047397,31]
[313422267,1707330545923,-827.69,0.00047397,31]
[313422268,1707330545961,-649.05,0.00047397,31]
[313422269,1707330546000,-824.08,0.00047397,31]
[313422270,1707330546038,-500.0,0.00047397,31]
[313422271,1707330546077,-500.0,0.00047397,31]
[313422272,1707330546116,-500.0,0.00047397,31]
[313422273,1707330546155,-573.93,0.00047397,31]
[313422274,1707330546196,-1205.86,0.00047397,31]
[313422275,1707330546236,-500.0,0.00047397,31]
[313422276,1707330546276,-500.0,0.00047397,31]
[313422277,1707330546318,-500.0,0.00047397,31]
[313422278,1707330546357,-500.0,0.00047397,31]
[313422279,1707330546397,-1305.46,0.00047397,31]
[313422280,1707330546445,-915.55,0.00047397,31]
[313422281,1707330546483,-1430.98,0.00047397,31]
[313422282,1707330546528,-500.0,0.00047397,31]
[313422283,1707330546564,-572.34663238,0.00047397,31]
[313422284,1707330546601,-500.0,0.00047397,31]
[313422285,1707330546638,-500.0,0.00047397,31]
[313422286,1707330546675,-1071.66,0.00047397,31]
[313422287,1707330546711,-500.0,0.00047397,31]
[313422288,1707330546747,-1079.58,0.00047397,31]
[313422289,1707330546782,-500.0,0.00047397,31]
[313422290,1707330546817,-500.0,0.00047397,31]
[313422291,1707330546852,-500.0,0.00047397,31]
[313422292,1707330546888,-641.29,0.00047397,31]
[313422293,1707330546925,-500.0,0.00047397,31]
[313422294,1707330546960,-614.57632395,0.00047397,31]
[313422295,1707330546995,-566.8,0.00047397,31]
[313422296,1707330547032,-500.0,0.00047397,31]
[313422297,1707330547071,-13119.16,0.00047397,31]
[313422298,1707330547108,-1211.92,0.00047397,31]
[313422300,1707330547143,-500.0,0.00047397,31]
[313422302,1707330547178,-520.00964607,0.00047397,31]
[313422304,1707330547213,-1193.33,0.00047397,31]
[313422307,1707330547248,-500.0,0.00047397,31]
[313422309,1707330547284,-1075.08,0.00047397,31]
[313422310,1707330547321,-1079.91,0.00047397,31]
[313422311,1707330547358,-1061.28,0.00047397,31]
[313422312,1707330547396,-984.32,0.00047397,31]
[313422313,1707330547433,-1181.81,0.00047397,31]
[313422314,1707330547470,-500.0,0.00047397,31]
[313422315,1707330547505,-656.79,0.00047397,31]
[313422316,1707330547540,-500.0,0.00047397,31]
[313422317,1707330547577,-581.53902551,0.00047397,31]
[313422318,1707330547611,-500.0,0.00047397,31]
[313422319,1707330547649,-610.13,0.00047397,31]
[313422320,1707330547683,-500.0,0.00047397,31]
[313422321,1707330547711,-500.0,0.00047397,31]
[313422322,1707330547738,-500.0,0.00047397,31]
[313422323,1707330547765,-500.0,0.00047397,31]
[313422324,1707330548286,-3312.54,0.00047397,31]
[313422325,1707330548316,-500.0,0.00047397,31]
[313422326,1707330548344,-989.83,0.00047397,31]
[313422327,1707330548374,-981.99,0.00047397,31]
[313422328,1707330548402,-500.0,0.00047397,31]
[313422329,1707330548431,-1182.09,0.00047397,31]
[313422330,1707330548457,-500.0,0.00047397,31]
[313422331,1707330548486,-1127.5,0.00047397,31]
[313422332,1707330548513,-500.0,0.00047397,31]
[313422333,1707330548542,-1091.93,0.00047397,31]
[313422334,1707330548569,-1016.26,0.00047397,31]
[313422335,1707330548597,-500.0,0.00047397,31]
[313422336,1707330548624,-500.0,0.00047397,31]
[313422337,1707330548651,-500.0,0.00047397,31]
[313422338,1707330548683,-500.0,0.00047397,31]
[313422339,1707330548710,-500.0,0.00047397,31]
[313422340,1707330548736,-500.0,0.00047397,31]
[313422341,1707330548764,-500.0,0.00047397,31]
[313422342,1707330548791,-944.6,0.00047397,31]
[313422343,1707330548819,-866.94,0.00047397,31]
[313422344,1707330548846,-1249.45,0.00047397,31]
[313422345,1707330548872,-283.07147288,0.00047397,31]
[313422346,1707330548900,-500.0,0.00047397,31]
[313422347,1707330548927,-520.7,0.00047397,31]
[313422348,1707330548954,-527.04,0.00047397,31]
[313422349,1707330548982,-978.95,0.00047397,31]
[313422350,1707330549010,-584.15,0.00047397,31]
[313422351,1707330549038,-913.9,0.00047397,31]
[313422352,1707330549064,-500.0,0.00047397,31]
[313422353,1707330549091,-500.0,0.00047397,31]
[313422354,1707330549119,-1320.52,0.00047397,31]
[313422355,1707330549148,-500.0,0.00047397,31]
[313422356,1707330549176,-500.0,0.00047397,31]
[313422357,1707330549203,-576.82,0.00047397,31]
[313422358,1707330549230,-1039.46,0.00047397,31]
[313422359,1707330549258,-325.47692264,0.00047397,31]
[313422360,1707330549288,-500.0,0.00047397,31]
[313422361,1707330549322,-500.0,0.00047397,31]
[313422362,1707330549350,-500.0,0.00047397,31]
[313422363,1707330549380,-955.86,0.00047397,31]
[313422364,1707330549409,-500.0,0.00047397,31]
[313422365,1707330549437,-1136.87,0.00047397,31]
[313422366,1707330549465,-519.3,0.00047397,31]
[313422367,1707330549493,-929.96,0.00047397,31]
[313422368,1707330549520,-500.0,0.00047397,31]
[313422369,1707330549548,-514.64,0.00047397,31]
[313422370,1707330549575,-500.0,0.00047397,31]
[313422371,1707330549603,-247.47147222,0.00047397,31]
[313422372,1707330549630,-500.0,0.00047397,31]
[313422373,1707330549659,-500.0,0.00047397,31]
[313422374,1707330549689,-500.0,0.00047397,31]
[313422375,1707330549717,-500.0,0.00047397,31]
[313422376,1707330549746,-500.0,0.00047397,31]
[313422377,1707330549775,-500.0,0.00047397,31]
[313422378,1707330549801,-500.0,0.00047397,31]
[313422379,1707330549829,-933.01,0.00047397,31]
[313422380,1707330549856,-500.0,0.00047397,31]
[313422381,1707330549885,-786.99,0.00047397,31]
[313422382,1707330549915,-1428.21,0.00047397,31]
[313422383,1707330549943,-1003.21,0.00047397,31]
[313422384,1707330549971,-500.0,0.00047397,31]
[313422385,1707330549999,-837.68,0.00047397,31]
[313422386,1707330550028,-500.0,0.00047397,31]
[313422387,1707330550055,-500.0,0.00047397,31]
[313422388,1707330550083,-500.0,0.00047397,31]
[313422389,1707330550112,-500.0,0.00047397,31]
[313422390,1707330550141,-556.43,0.00047397,31]
[313422391,1707330550170,-293.98605056,0.00047397,31]
[313422392,1707330550200,-500.0,0.00047397,31]
[313422393,1707330550239,-500.0,0.00047397,31]
[313422394,1707330550274,-500.0,0.00047397,31]
[313422395,1707330550306,-599.1,0.00047397,31]
[313422396,1707330550339,-938.95,0.00047397,31]
[313422397,1707330550369,-327.66090693,0.00047397,31]
[313422398,1707330550400,-1035.19,0.00047397,31]
[313422399,1707330550429,-500.0,0.00047397,31]
[313422400,1707330550459,-834.43,0.00047397,31]
[313422401,1707330550487,-500.0,0.00047397,31]
[313422402,1707330550516,-898.3,0.00047397,31]
[313422403,1707330550547,-500.0,0.00047397,31]
[313422404,1707330550575,-500.0,0.00047397,31]
[313422405,1707330550605,-1824.24,0.00047397,31]
[313422406,1707330550634,-500.0,0.00047397,31]
[313422407,1707330550663,-500.0,0.00047397,31]
[313422408,1707330550691,-1258.83,0.00047397,31]
[313422409,1707330550720,-500.0,0.00047397,31]
[313422410,1707330550749,-500.0,0.00047397,31]
[313422411,1707330550779,-500.0,0.00047397,31]
[313422412,1707330550808,-1485.55,0.00047397,31]
[313422413,1707330550836,-500.0,0.00047397,31]
[313422414,1707330550864,-500.0,0.00047397,31]
[313422415,1707330550892,-500.0,0.00047397,31]
[313422416,1707330550919,-703.64,0.00047397,31]
[313422417,1707330550947,-856.57,0.00047397,31]
[313422418,1707330550976,-500.0,0.00047397,31]
[313422419,1707330551003,-937.23,0.00047397,31]
[313422420,1707330551032,-500.0,0.00047397,31]
[313422421,1707330551060,-500.0,0.00047397,31]
[313422422,1707330551090,-500.0,0.00047397,31]
[313422423,1707330551119,-529.38,0.00047397,31]
[313422435,1707330551415,-926.32,0.00047397,31]
[313422437,1707330551443,-500.0,0.00047397,31]
[313422439,1707330551470,-814.46,0.00047397,31]
[313422442,1707330551498,-500.0,0.00047397,31]
[313422444,1707330551526,-500.0,0.00047397,31]
[313422446,1707330551554,-941.51,0.00047397,31]
[313422449,1707330551581,-1877.02,0.00047397,31]
[313422451,1707330551610,-500.0,0.00047397,31]
[313422453,1707330551637,-1288.36,0.00047397,31]
[313422456,1707330551664,-500.0,0.00047397,31]
[313422458,1707330551691,-500.0,0.00047397,31]
[313422460,1707330551718,-382.94982201,0.00047397,31]
[313422463,1707330551751,-510.87,0.00047397,31]
[313422465,1707330551778,-811.03,0.00047397,31]
[313422468,1707330551804,-667.25,0.00047397,31]
[313422470,1707330551831,-500.0,0.00047397,31]
[313422471,1707330551856,-500.0,0.00047397,31]
[313422472,1707330551883,-500.0,0.00047397,31]
[313422473,1707330551911,-1011.37,0.00047397,31]
[313422474,1707330551939,-504.36,0.00047397,31]
[313422475,1707330551967,-922.41,0.00047397,31]
[313422476,1707330551993,-522.07,0.00047397,31]
[313422477,1707330552021,-500.0,0.00047397,31]
[313422478,1707330552047,-540.69741909,0.00047397,31]
[313422479,1707330552077,-500.0,0.00047397,31]
[313422480,1707330552105,-500.0,0.00047397,31]
[313422481,1707330552133,-500.0,0.00047397,31]
[313422482,1707330552161,-552.53,0.00047397,31]
[313422483,1707330552188,-1318.04,0.00047397,31]
[313422484,1707330552215,-500.0,0.00047397,31]
[313422485,1707330552242,-1071.7,0.00047397,31]
[313422486,1707330552269,-500.0,0.00047397,31]
[313422487,1707330552300,-500.0,0.00047397,31]
[313422488,1707330552328,-500.0,0.00047397,31]
[313422489,1707330552356,-500.0,0.00047397,31]
[313422490,1707330552386,-974.65,0.00047397,31]
[313422491,1707330552416,-811.51,0.00047397,31]
[313422492,1707330552445,-500.0,0.00047397,31]
[313422493,1707330552471,-1464.8,0.00047397,31]
[313422494,1707330552499,-530.39,0.00047397,31]
[313422495,1707330552526,-500.0,0.00047397,31]
[313422496,1707330552552,-500.0,0.00047397,31]
[313422497,1707330552578,-500.0,0.00047397,31]
[313422498,1707330552606,-683.79,0.00047397,31]
[313422499,1707330552633,-500.0,0.00047397,31]
[313422500,1707330552660,-500.0,0.00047397,31]
[313422501,1707330552686,-508.47,0.00047397,31]
[313422502,1707330552713,-500.0,0.00047397,31]
[313422503,1707330552742,-523.23179356,0.00047397,31]
[313422504,1707330552770,-746.86,0.00047397,31]
[313422505,1707330552797,-500.0,0.00047397,31]
[313422506,1707330552825,-581.08,0.00047397,31]
[313422507,1707330552852,-500.0,0.00047397,31]
[313422508,1707330552880,-500.0,0.00047397,31]
[313422509,1707330552908,-528.68919857,0.00047397,31]
[313422510,1707330552935,-500.0,0.00047397,31]
[313422511,1707330552962,-946.6,0.00047397,31]
[313422512,1707330552989,-500.0,0.00047397,31]
[313422513,1707330553016,-1116.34,0.00047397,31]
[313422514,1707330553043,-150.0,0.00047397,31]
[313422515,1707330553071,-500.0,0.00047397,31]
[313422516,1707330553097,-500.0,0.00047397,31]
[313422517,1707330553124,-503.91798274,0.00047397,31]
[313422518,1707330553151,-500.0,0.00047397,31]
[313422519,1707330553179,-187.85818469,0.00047397,31]
[313422520,1707330553206,-1621.88,0.00047397,31]
[313422521,1707330553234,-738.4140315,0.00047397,30]
[313422522,1707330553263,-968.71,0.00047397,31]
[313422523,1707330553290,-500.0,0.00047397,31]
[313422524,1707330553320,-500.0,0.00047397,31]
[313422525,1707330553349,-972.03,0.00047397,31]
[313422526,1707330553378,-674.02,0.00047397,31]
[313422527,1707330553408,-707.2,0.00047397,31]
[313422528,1707330553436,-528.11,0.00047397,31]
[313422529,1707330553463,-500.0,0.00047397,31]
[313422530,1707330553493,-298.14366147,0.00047397,31]
[313422531,1707330553521,-1070.7,0.00047397,31]
[313422532,1707330553548,-500.0,0.00047397,31]
[313422533,1707330553575,-500.0,0.00047397,31]
[313422534,1707330553603,-500.0,0.00047397,31]
[313422535,1707330553630,-2700.43,0.00047397,31]
[313422536,1707330553658,-563.85,0.00047397,31]
[313422537,1707330553685,-500.0,0.00047397,31]
[313422538,1707330553711,-500.0,0.00047397,31]
[313422539,1707330553739,-500.0,0.00047397,31]
[313422540,1707330553767,-500.0,0.00047397,31]
[313422541,1707330553794,-500.0,0.00047397,31]
[313422542,1707330553822,-190.54422199,0.00047397,31]
[313422543,1707330553850,-786.94,0.00047397,31]
[313422544,1707330553877,-500.0,0.00047397,31]
[313422545,1707330553906,-500.0,0.00047397,31]
[313422546,1707330553933,-871.97,0.00047397,31]
[313422547,1707330553961,-500.0,0.00047397,31]
[313422548,1707330553988,-500.0,0.00047397,30]
[313422549,1707330554016,-608.39,0.00047397,31]
[313422550,1707330554045,-500.0,0.00047397,31]
[313422551,1707330554074,-1040.21,0.00047397,31]
[313422552,1707330554101,-500.0,0.00047397,31]
[313422553,1707330554132,-338.65875546,0.00047397,30]
[313422554,1707330554161,-500.0,0.00047397,31]
[313422555,1707330554189,-1399.56,0.00047397,31]
[313422556,1707330554216,-500.0,0.00047397,31]
[313422557,1707330554243,-500.0,0.00047397,31]
[313422558,1707330554270,-2642.06,0.00047397,31]